[Event "GER-chT Youth Countries 2018"]
[Site "Wurzburg"]
[Date "2018.10.06"]
[Round "6"]
[White "Woerz, Ann-Sophie"]
[Black "Hubert, Charlotte"]
[Result "1-0"]
[ECO "C42"]
[WhiteElo "1463"]
[BlackElo "1376"]
[Annotator "NA RC"]
[PlyCount "90"]
[EventDate "2018.10.03"]
[EventType "team-tourn"]
[EventCountry "GER"]
[SourceTitle "playchess.com"]
[Source "ChessBase"]
[SourceQuality "1"]
[TimeControl "40/5400+30:1800+30"]

1. e4 {[%emt 0:00:00]} e5 {[%emt 0:00:00]} 2. Nf3 {[%emt 0:00:00]} Nf6 {[%emt 0:00:00]} 3. Nxe5 {[%emt 0:00:00]} d6 {[%emt 0:00:00]} 4. Nf3 {[%emt 0:00:00]} Nxe4 {[%emt 0:00:00]} 5. Nc3 {[%emt 0:00:11]} Nxc3 {[%emt 0:01:02]} 6. dxc3 {[%emt 0:00:11]} Be7 {[%emt 0:00:22]} 7. Be3 {[%emt 0:00:28]} Nc6 {[%emt 0:01:41]} 8. Qd2 {[%emt 0:01:14]} Be6 {[%emt 0:02:11]} 9. Bd3 {[%emt 0:05:22]} Qd7 {[%emt 0:04:55]} 10. a3 {[%emt 0:02:09]} O-O-O {[%emt 0:03:50]} 11. O-O-O {[%emt 0:01:31]} Bf6 {[%emt 0:09:04]} 12. h3 {[%emt 0:05:14]} h6 {[%emt 0:03:17]} 13. Bb5 {[%emt 0:04:02]} a6 {[%emt 0:03:20]} 14. Ba4 {[%emt 0:04:25]} Rhe8 {[%emt 0:06:01]} 15. Bd4 {[%emt 0:06:11]} Bxd4 {[%emt 0:06:49]} 16. cxd4 {[%emt 0:02:53]} b5 {[%emt 0:04:55]} 17. Bxb5 {[%emt 0:03:30]} axb5 {[%emt 0:00:10]} 18. d5 {[%emt 0:00:16]} Bf5 {[%emt 0:04:30]} 19. dxc6 {[%emt 0:00:48]} Qxc6 {[%emt 0:00:16]} 20. Nd4 {[%emt 0:01:41]} Qd7 {[%emt 0:01:48]} 21. Qa5 {[%emt 0:02:36]} Be4 {[%emt 0:14:44]} 22. f3 {[%emt 0:06:01]} Bb7 {[%emt 0:03:27]} 23. Qxb5 {[%emt 0:03:33]} Qxb5 {[%emt 0:01:14]} 24. Nxb5 {[%emt 0:00:02]} Re2 {[%emt 0:00:49]} 25. Rd2 {[%emt 0:00:58]} Rde8 {[%emt 0:01:22]} 26. Nc3 {[%emt 0:01:40]} R2e6 {[%emt 0:03:12]} 27. Kd1 {[%emt 0:03:32]} Rg6 {[%emt 0:01:15]} 28. Re1 {[%emt 0:01:51]} Rxe1+ {[%emt 0:01:41]} 29. Kxe1 {[%emt 0:00:24]} Kd7 {[%emt 0:00:26]} 30. b4 {[%emt 0:03:32]} Kc6 {[%emt 0:03:22]} 31. Kf2 {[%emt 0:02:58]} Kb6 {[%emt 0:04:08]} 32. Nd5+ {[%emt 0:09:09]} Bxd5 {[%emt 0:01:41]} 33. Rxd5 {[%emt 0:00:21]} Re6 {[%emt 0:02:43]} 34. c4 {[%emt 0:02:06]} Re8 {[%emt 0:02:18]} 35. a4 {[%emt 0:04:12]} Ra8 {[%emt 0:03:27]} 36. Rb5+ {[%emt 0:02:59]} Kc6 {[%emt 0:00:46]} 37. a5 {[%emt 0:01:22]} f6 {[%emt 0:01:34]} 38. Ke3 {[%emt 0:00:40]} Ra6 {[%emt 0:01:53]} 39. Rb8 {[%emt 0:01:31]} Kd7 {[%emt 0:01:10]} 40. Kd4 {[%emt 0:02:06]} g5 {[%emt 0:03:15]} 41. Rh8 {[%emt 0:32:10]} Ke7 {[%emt 0:01:29]} 42. Rxh6 {[%emt 0:00:00]} Ke6 {[%emt 0:03:16]} 43. g3 {[%emt 0:00:00]} Ke7 {[%emt 0:01:16]} 44. h4 {[%emt 0:00:00]} gxh4 {[%emt 0:00:24]} 45. gxh4 {[%emt 0:00:00]} Ke8 1-0

[Event "GER-chT Youth Countries 2018"]
[Site "Wurzburg"]
[Date "2018.10.06"]
[Round "6"]
[White "Ruhmke, Rebecca"]
[Black "Liu, Sijia Anna"]
[Result "1-0"]
[ECO "B24"]
[WhiteElo "1399"]
[BlackElo "1730"]
[Annotator "NA RC"]
[PlyCount "85"]
[EventDate "2018.10.03"]
[EventType "team-tourn"]
[EventCountry "GER"]
[SourceTitle "playchess.com"]
[Source "ChessBase"]
[SourceQuality "1"]
[TimeControl "40/5400+30:1800+30"]

1. e4 {[%emt 0:00:00]} c5 {[%emt 0:00:00]} 2. Nc3 {[%emt 0:00:00]} Nc6 {[%emt 0:00:00]} 3. g3 {[%emt 0:00:20]} g6 {[%emt 0:00:08]} 4. Bg2 {[%emt 0:00:33]} Bg7 {[%emt 0:00:33]} 5. f4 {[%emt 0:01:45]} e6 {[%emt 0:00:41]} 6. Nf3 {[%emt 0:01:52]} Nge7 {[%emt 0:01:05]} 7. O-O {[%emt 0:00:47]} O-O {[%emt 0:00:55]} 8. Ne2 {[%emt 0:08:47]} d5 {[%emt 0:04:08]} 9. e5 {[%emt 0:01:00]} b5 {[%emt 0:03:13]} 10. d3 {[%emt 0:02:14]} Bb7 {[%emt 0:02:52]} 11. g4 {[%emt 0:05:14]} Re8 {[%emt 0:04:23]} 12. Ng3 {[%emt 0:16:45]} f5 {[%emt 0:04:03]} 13. exf6 {[%emt 0:05:39]} Bxf6 {[%emt 0:00:20]} 14. Qe2 {[%emt 0:06:53]} Nd4 {[%emt 0:03:57]} 15. Nxd4 {[%emt 0:05:23]} Bxd4+ {[%emt 0:00:10]} 16. Kh1 {[%emt 0:00:17]} Nc6 {[%emt 0:02:24]} 17. c3 {[%emt 0:07:25]} Bg7 {[%emt 0:00:55]} 18. Qf2 {[%emt 0:02:59]} c4 {[%emt 0:09:32]} 19. d4 {[%emt 0:01:56]} b4 {[%emt 0:01:58]} 20. Bd2 {[%emt 0:09:11]} a5 {[%emt 0:03:06]} 21. Rae1 {[%emt 0:02:41]} Qd7 {[%emt 0:01:57]} 22. f5 {[%emt 0:03:29]} exf5 {[%emt 0:02:16]} 23. gxf5 {[%emt 0:01:12]} Rf8 {[%emt 0:01:29]} 24. Qf4 {[%emt 0:04:46]} Rf6 {[%emt 0:06:30]} 25. h4 {[%emt 0:03:27]} Raf8 {[%emt 0:02:01]} 26. Bh3 {[%emt 0:01:19]} Qf7 {[%emt 0:08:38]} 27. Qg4 {[%emt 0:03:55]} Bc8 {[%emt 0:03:56]} 28. Bg5 {[%emt 0:00:22]} gxf5 {[%emt 0:02:08]} 29. Qf4 {[%emt 0:01:06]} Rg6 {[%emt 0:02:39]} 30. Bxf5 {[%emt 0:00:19]} Qb7 {[%emt 0:05:18]} 31. h5 {[%emt 0:00:23]} h6 {[%emt 0:04:56]} 32. hxg6 {[%emt 0:00:18]} hxg5 {[%emt 0:01:04]} 33. Qxg5 {[%emt 0:00:01]} bxc3 {[%emt 0:02:52]} 34. Qh5 {[%emt 0:01:02]} Bxd4 {[%emt 0:00:50]} 35. bxc3 {[%emt 0:01:08]} Bxc3 {[%emt 0:01:58]} 36. Be6+ {[%emt 0:01:02]} Bxe6 {[%emt 0:01:02]} 37. Rxf8+ {[%emt 0:00:32]} Kxf8 {[%emt 0:00:32]} 38. Rxe6 {[%emt 0:00:33]} Bd4 {[%emt 0:03:48]} 39. Qxd5 {[%emt 0:01:15]} Qb1+ {[%emt 0:01:59]} 40. Kg2 {[%emt 0:00:26]} Qg1+ {[%emt 0:03:18]} 41. Kf3 {[%emt 0:31:34]} Ne5+ {[%emt 0:32:21]} 42. Rxe5 {[%emt 0:00:00]} Bxe5 {[%emt 0:00:00]} 43. Qf7# {[%emt 0:00:00]} 1-0

[Event "GER-chT Youth Countries 2018"]
[Site "Wurzburg"]
[Date "2018.10.06"]
[Round "6"]
[White "Zoellner, Bente"]
[Black "Keymer, Cecilia"]
[Result "1-0"]
[ECO "D11"]
[WhiteElo "1354"]
[BlackElo "1479"]
[Annotator "NA RC"]
[PlyCount "151"]
[EventDate "2018.10.03"]
[EventType "team-tourn"]
[EventCountry "GER"]
[SourceTitle "playchess.com"]
[Source "ChessBase"]
[SourceQuality "1"]
[TimeControl "40/5400+30:1800+30"]

1. d4 {[%emt 0:00:00]} d5 {[%emt 0:00:00]} 2. c4 {[%emt 0:00:00]} c6 {[%emt 0:00:00]} 3. Nf3 {[%emt 0:00:01]} Nf6 {[%emt 0:00:00]} 4. Bg5 {[%emt 0:00:21]} Ne4 {[%emt 0:02:19]} 5. Bh4 {[%emt 0:01:32]} h6 {[%emt 0:03:09]} 6. cxd5 {[%emt 0:02:03]} cxd5 {[%emt 0:00:31]} 7. Nfd2 {[%emt 0:01:45]} Nxd2 {[%emt 0:03:41]} 8. Nxd2 {[%emt 0:00:17]} Qb6 {[%emt 0:03:28]} 9. Nb3 {[%emt 0:02:11]} Bf5 {[%emt 0:03:29]} 10. e3 {[%emt 0:01:29]} e6 {[%emt 0:01:41]} 11. Bd3 {[%emt 0:00:35]} Bb4+ {[%emt 0:01:12]} 12. Ke2 {[%emt 0:01:48]} Bxd3+ {[%emt 0:05:05]} 13. Qxd3 {[%emt 0:00:29]} Qa6 {[%emt 0:06:38]} 14. Rhc1 {[%emt 0:03:14]} Qxd3+ {[%emt 0:02:25]} 15. Kxd3 {[%emt 0:00:12]} Nc6 {[%emt 0:00:48]} 16. f3 {[%emt 0:01:20]} O-O {[%emt 0:04:46]} 17. Nc5 {[%emt 0:02:49]} Bxc5 {[%emt 0:03:11]} 18. Rxc5 {[%emt 0:00:36]} Rac8 {[%emt 0:03:51]} 19. a3 {[%emt 0:03:50]} g5 {[%emt 0:04:58]} 20. Bg3 {[%emt 0:02:34]} Rfd8 {[%emt 0:02:39]} 21. Rac1 {[%emt 0:03:22]} Ne7 {[%emt 0:04:45]} 22. b4 {[%emt 0:08:21]} Nc6 {[%emt 0:04:40]} 23. b5 {[%emt 0:06:05]} Ne7 {[%emt 0:01:06]} 24. Bd6 {[%emt 0:05:15]} Rxc5 {[%emt 0:02:47]} 25. Bxc5 {[%emt 0:00:23]} Rc8 {[%emt 0:04:47]} 26. Rb1 {[%emt 0:02:33]} Nf5 {[%emt 0:03:09]} 27. Bxa7 {[%emt 0:02:05]} Ra8 {[%emt 0:02:05]} 28. Bc5 {[%emt 0:00:53]} Nh4 {[%emt 0:02:04]} 29. Rb2 {[%emt 0:01:42]} Kg7 {[%emt 0:01:58]} 30. Ra2 {[%emt 0:03:51]} Ra4 {[%emt 0:01:22]} 31. Bb4 {[%emt 0:00:50]} Ra7 {[%emt 0:02:40]} 32. a4 {[%emt 0:00:42]} Kf6 {[%emt 0:02:29]} 33. a5 {[%emt 0:01:00]} Nf5 {[%emt 0:02:05]} 34. Bc5 {[%emt 0:00:54]} Ra8 {[%emt 0:01:46]} 35. a6 {[%emt 0:00:24]} bxa6 {[%emt 0:02:23]} 36. Rxa6 {[%emt 0:01:15]} Rb8 {[%emt 0:00:34]} 37. b6 {[%emt 0:00:39]} h5 {[%emt 0:01:45]} 38. Ra7 {[%emt 0:00:58]} h4 {[%emt 0:02:27]} 39. Rc7 {[%emt 0:00:55]} Nd6 {[%emt 0:02:07]} 40. Bxd6 {[%emt 0:00:32]} Rxb6 {[%emt 0:00:58]} 41. Be5+ {[%emt 0:30:28]} Kg6 {[%emt 0:30:18]} 42. e4 {[%emt 0:00:52]} f6 {[%emt 0:01:21]} 43. exd5 {[%emt 0:04:26]} exd5 {[%emt 0:01:45]} 44. f4 {[%emt 0:04:29]} fxe5 {[%emt 0:01:51]} 45. fxe5 {[%emt 0:00:32]} Rb3+ {[%emt 0:01:55]} 46. Rc3 {[%emt 0:00:42]} Rb2 {[%emt 0:00:46]} 47. Rc2 {[%emt 0:00:16]} Rb3+ {[%emt 0:00:22]} 48. Ke2 {[%emt 0:00:07]} Rb4 {[%emt 0:00:43]} 49. Rd2 {[%emt 0:01:04]} Kf5 {[%emt 0:00:29]} 50. Kf2 {[%emt 0:03:08]} g4 {[%emt 0:01:06]} 51. Re2 {[%emt 0:01:56]} Ke6 {[%emt 0:01:32]} 52. Rd2 {[%emt 0:01:57]} Kf5 {[%emt 0:00:13]} 53. Ke2 {[%emt 0:03:13]} Ra4 {[%emt 0:01:06]} 54. Kd3 {[%emt 0:00:42]} Ra3+ {[%emt 0:00:30]} 55. Kc2 {[%emt 0:01:46]} Ra2+ {[%emt 0:00:46]} 56. Kc3 {[%emt 0:00:48]} Ra8 {[%emt 0:00:00]} 57. Rf2+ {[%emt 0:00:00]} Kg5 {[%emt 0:00:00]} 58. Kb4 {[%emt 0:00:00]} Rc8 {[%emt 0:00:00]} 59. e6 {[%emt 0:00:00]} Re8 {[%emt 0:00:00]} 60. Re2 {[%emt 0:00:00]} Kf6 {[%emt 0:00:00]} 61. e7 {[%emt 0:00:00]} Rxe7 {[%emt 0:00:00]} 62. Rxe7 {[%emt 0:00:00]} Kxe7 {[%emt 0:00:00]} 63. Kc5 {[%emt 0:00:00]} Ke6 {[%emt 0:00:00]} 64. Kc6 {[%emt 0:00:00]} Ke7 {[%emt 0:00:00]} 65. Kxd5 {[%emt 0:00:00]} Kd7 {[%emt 0:00:00]} 66. Ke5 {[%emt 0:00:00]} Ke7 {[%emt 0:00:00]} 67. d5 {[%emt 0:00:00]} Kd7 {[%emt 0:00:00]} 68. d6 {[%emt 0:00:00]} Kd8 {[%emt 0:00:00]} 69. Kf4 {[%emt 0:00:00]} g3 {[%emt 0:00:00]} 70. h3 {[%emt 0:00:00]} Kd7 {[%emt 0:00:00]} 71. Kg4 {[%emt 0:00:00]} Kxd6 {[%emt 0:00:00]} 72. Kxh4 {[%emt 0:00:00]} Ke6 {[%emt 0:00:00]} 73. Kxg3 {[%emt 0:00:00]} Kf5 {[%emt 0:00:00]} 74. Kf3 {[%emt 0:00:00]} Kg5 {[%emt 0:00:00]} 75. g4 {[%emt 0:00:00]} Kh4 {[%emt 0:00:00]} 76. Kf4 {[%emt 0:00:00]} 1-0

[Event "GER-chT Youth Countries 2018"]
[Site "Wurzburg"]
[Date "2018.10.07"]
[Round "7"]
[White "Gschnitzer, Adrian"]
[Black "Nothnagel, Marian Can"]
[Result "0-1"]
[ECO "C55"]
[WhiteElo "2363"]
[BlackElo "2341"]
[Annotator "ChessBase"]
[PlyCount "92"]
[EventDate "2018.10.03"]
[EventType "team-tourn"]
[EventCountry "GER"]
[SourceTitle "playchess.com"]
[Source "ChessBase"]
[SourceQuality "1"]
[TimeControl "40/5400+30:1800+30"]

1. e4 {[%emt 0:00:00]} e5 {[%emt 0:00:07]} 2. Nf3 {[%emt 0:00:06]} Nc6 {[%emt 0:00:04]} 3. Bc4 {[%emt 0:00:09]} Nf6 {[%emt 0:00:05]} 4. d3 {[%emt 0:00:07]} Be7 {[%emt 0:00:05]} 5. O-O {[%emt 0:00:11]} O-O {[%emt 0:00:09]} 6. Re1 {[%emt 0:00:18]} d6 {[%emt 0:00:07]} 7. a4 {[%emt 0:00:11]} Kh8 {[%emt 0:00:17]} 8. h3 {[%emt 0:27:11]} h6 {[%emt 0:01:16]} 9. Nbd2 {[%emt 0:02:20]} Nh7 {[%emt 0:06:13]} 10. Nf1 Ng5 {[%emt 0:06:41]} 11. Nxg5 {[%emt 0:08:10]} Bxg5 {[%emt 0:00:18]} 12. Bxg5 {[%emt 0:09:39]} Qxg5 {[%emt 0:00:07]} 13. Ng3 {[%emt 0:00:16]} Ne7 {[%emt 0:18:49]} 14. d4 {[%emt 0:13:34]} Ng6 {[%emt 0:02:20]} 15. dxe5 {[%emt 0:01:23]} dxe5 {[%emt 0:01:02]} 16. Qh5 {[%emt 0:01:17]} Qf6 {[%emt 0:01:56]} 17. Nf5 {[%emt 0:09:19]} Nf4 {[%emt 0:03:44]} 18. Qh4 {[%emt 0:01:32]} Bxf5 {[%emt 0:00:27]} 19. Qxf6 {[%emt 0:00:07]} gxf6 {[%emt 0:00:04]} 20. exf5 {[%emt 0:00:06]} Rg8 {[%emt 0:00:06]} 21. g3 {[%emt 0:00:05]} Nxh3+ {[%emt 0:00:07]} 22. Kg2 {[%emt 0:00:08]} Ng5 {[%emt 0:00:37]} 23. Rh1 {[%emt 0:07:02]} Kg7 {[%emt 0:00:56]} 24. Rh4 {[%emt 0:00:58]} Rad8 {[%emt 0:09:18]} 25. Bd3 {[%emt 0:01:42]} Rge8 {[%emt 0:01:37]} 26. f4 {[%emt 0:03:14]} e4 {[%emt 0:02:58]} 27. fxg5 {[%emt 0:00:52]} exd3 {[%emt 0:00:05]} 28. Rxh6 {[%emt 0:04:50]} fxg5 {[%emt 0:08:03]} 29. Rah1 {[%emt 0:00:12]} Rd6 {[%emt 0:00:30]} 30. Rxd6 {[%emt 0:08:44]} cxd6 {[%emt 0:00:04]} 31. cxd3 {[%emt 0:00:05]} Re3 {[%emt 0:02:06]} 32. Rd1 {[%emt 0:00:58]} g4 {[%emt 0:01:04]} 33. Kf2 {[%emt 0:01:01]} Rf3+ {[%emt 0:00:06]} 34. Kg2 {[%emt 0:00:07]} Rxf5 {[%emt 0:00:22]} 35. d4 {[%emt 0:00:39]} Rf3 {[%emt 0:01:08]} 36. Re1 {[%emt 0:00:52]} Rb3 {[%emt 0:00:13]} 37. Re4 {[%emt 0:00:19]} Rxb2+ {[%emt 0:00:26]} 38. Kf1 {[%emt 0:00:06]} f5 {[%emt 0:00:05]} 39. Re6 {[%emt 0:00:12]} Rb6 {[%emt 0:15:48]} 40. a5 {[%emt 0:00:38]} Ra6 {[%emt 0:00:08]} 41. Kf2 {[%emt 0:31:15]} Kf7 {[%emt 0:30:14]} 42. Rh6 {[%emt 0:00:00]} Rxa5 {[%emt 0:00:00]} 43. Ke3 {[%emt 0:00:00]} Ke7 {[%emt 0:00:00]} 44. Rh7+ {[%emt 0:00:00]} Ke6 {[%emt 0:00:00]} 45. Rxb7 {[%emt 0:00:00]} Ra3+ {[%emt 0:00:00]} 46. Kf2 {[%emt 0:00:00]} Kd5 {[%emt 0:00:00]} 0-1

[Event "GER-chT Youth Countries 2018"]
[Site "Wurzburg"]
[Date "2018.10.07"]
[Round "7"]
[White "Ewert, Hannes"]
[Black "Sieber, Fiona"]
[Result "1/2-1/2"]
[ECO "E15"]
[WhiteElo "2314"]
[BlackElo "2246"]
[Annotator "ChessBase"]
[PlyCount "79"]
[EventDate "2018.10.03"]
[EventType "team-tourn"]
[EventCountry "GER"]
[SourceTitle "playchess.com"]
[Source "ChessBase"]
[SourceQuality "1"]
[TimeControl "40/5400+30:1800+30"]

1. d4 {[%emt 0:00:00]} Nf6 {[%emt 0:00:00]} 2. c4 {[%emt 0:00:00]} e6 {[%emt 0:00:00]} 3. Nf3 {[%emt 0:00:11]} b6 {[%emt 0:00:00]} 4. g3 {[%emt 0:00:21]} Ba6 {[%emt 0:00:00]} 5. b3 {[%emt 0:00:21]} Bb4+ {[%emt 0:00:04]} 6. Bd2 {[%emt 0:00:06]} Be7 {[%emt 0:00:04]} 7. Bg2 {[%emt 0:00:20]} c6 {[%emt 0:00:25]} 8. Bc3 {[%emt 0:00:13]} d5 {[%emt 0:00:51]} 9. Nbd2 {[%emt 0:00:43]} O-O {[%emt 0:00:13]} 10. O-O {[%emt 0:01:23]} Nbd7 {[%emt 0:11:43]} 11. Re1 {[%emt 0:03:47]} Bb7 {[%emt 0:10:43]} 12. Qc2 {[%emt 0:12:57]} c5 {[%emt 0:03:26]} 13. dxc5 {[%emt 0:02:22]} Bxc5 {[%emt 0:04:48]} 14. b4 {[%emt 0:04:03]} Bd6 {[%emt 0:01:27]} 15. Qb2 {[%emt 0:01:17]} Re8 {[%emt 0:06:55]} 16. cxd5 {[%emt 0:05:29]} exd5 {[%emt 0:00:20]} 17. Rad1 {[%emt 0:03:21]} Rc8 {[%emt 0:03:39]} 18. Nb3 {[%emt 0:09:07]} Bf8 {[%emt 0:02:16]} 19. a3 {[%emt 0:02:55]} Ne4 {[%emt 0:02:34]} 20. Bd4 {[%emt 0:00:14]} Qe7 {[%emt 0:01:06]} 21. Nc1 {[%emt 0:07:52]} Nb8 {[%emt 0:12:55]} 22. Bh3 {[%emt 0:06:37]} Rcd8 {[%emt 0:01:54]} 23. Qa1 {[%emt 0:05:08]} Nc6 {[%emt 0:01:18]} 24. Bb2 {[%emt 0:00:29]} b5 {[%emt 0:05:26]} 25. Nd4 {[%emt 0:02:57]} a5 {[%emt 0:03:53]} 26. Nxc6 {[%emt 0:02:49]} Bxc6 {[%emt 0:00:02]} 27. Nd3 {[%emt 0:01:06]} Qg5 {[%emt 0:12:35]} 28. Bc1 {[%emt 0:12:00]} Qe7 {[%emt 0:01:59]} 29. bxa5 {[%emt 0:01:14]} Qa7 {[%emt 0:01:24]} 30. Bb2 {[%emt 0:07:05]} Qxa5 {[%emt 0:00:28]} 31. Rc1 {[%emt 0:00:34]} Bb7 {[%emt 0:00:55]} 32. Nb4 {[%emt 0:04:29]} f6 {[%emt 0:01:38]} 33. Nc2 {[%emt 0:02:49]} Ra8 {[%emt 0:06:19]} 34. Nd4 {[%emt 0:01:02]} b4 {[%emt 0:00:48]} 35. axb4 {[%emt 0:00:40]} Qb6 {[%emt 0:01:02]} 36. Qb1 {[%emt 0:00:12]} Bxb4 {[%emt 0:00:01]} 37. Red1 {[%emt 0:00:17]} Ba6 {[%emt 0:00:53]} 38. Rc6 {[%emt 0:00:34]} Qa7 {[%emt 0:00:23]} 39. Be6+ {[%emt 0:00:33]} Kh8 {[%emt 0:00:18]} 40. Bxd5 1/2-1/2

[Event "GER-chT Youth Countries 2018"]
[Site "Wurzburg"]
[Date "2018.10.07"]
[Round "7"]
[White "Niermann, Tristan"]
[Black "Richter, Leonard"]
[Result "0-1"]
[ECO "E63"]
[WhiteElo "2307"]
[BlackElo "2322"]
[Annotator "NA"]
[PlyCount "108"]
[EventDate "2018.10.03"]
[EventType "team-tourn"]
[EventCountry "GER"]
[SourceTitle "playchess.com"]
[Source "ChessBase"]
[SourceQuality "1"]
[TimeControl "40/5400+30:1800+30"]

{[%evp 20,107,32,32767,48,37,57,61,94,86,81,58,55,0,53,49,32767,75,37,24,32767,32767,3,0,0,32767,32767,32767,32767,101,105,32767,32767,32767,32767,32767,-37,-146,-134,32767,32767,-179,32767,32767,32767,-165,32767,32767,32767,32767,32767,-249,-254,-393,-405,32767,-381,-358,-187,-348,-339,-343,32767,-354,-350,-383,32767,-404,32767,-378,-462,-422,-487,32767,-601,32767,32767,-29952,32767,32767,32767,32767,32767,-12846,-29984,-29982,-29986,-29983,32767,-29999]} 1. d4 {[%emt 0:00:00]} Nf6 {[%emt 0:00:00]} 2. c4 {[%emt 0:00:00]} g6 {[%emt 0:00:00]} 3. g3 {[%emt 0:00:00]} Bg7 {[%emt 0:00:00]} 4. Bg2 {[%emt 0:00:00]} O-O {[%emt 0:00:00]} 5. Nc3 {[%emt 0:00:00]} d6 {[%emt 0:00:00]} 6. Nf3 {[%emt 0:00:00]} Nc6 {[%emt 0:00:16]} 7. O-O {[%emt 0:00:29]} a6 {[%emt 0:00:05]} 8. b3 {[%emt 0:00:06]} Rb8 {[%emt 0:00:53]} 9. d5 {[%emt 0:00:12]} Na5 {[%emt 0:00:15] E63: King's Indian: Fianchetto: Panno Variation with 7...a6} 10. Bg5 {[%emt 0:00:08]} (10. Bd2 c5 11. dxc6 Nxc6 12. Qc1 Bd7 13. Bh6 b5 14. Bxg7 Kxg7 15. cxb5 axb5 16. Qb2 Kg8 17. b4 Qb6 18. Rfd1 Rfc8 {½-½ (77) Inarkiev,E (2689)-Zhao,J (2604) Riadh 2017}) 10... c5 {[%emt 0:02:24]} 11. dxc6 {[%emt 0:00:29]} bxc6 {[%emt 0:19:41]} 12. c5 {[%emt 0:02:31] LiveBook: 3 Games} d5 $146 {[%emt 0:12:02]} ({Predecessor:} 12... h6 13. Bd2 d5 14. Bf4 Rb4 15. Be5 Bg4 16. Nd4 Re8 17. h3 {1-0 (61) Lingnau,C (2421)-Buchal,S (2347) Germany 2017}) 13. Rc1 {[%emt 0:21:00]} Re8 {[%emt 0:14:16]} 14. Bf4 {[%emt 0:20:47]} Rb7 {[%emt 0:07:28]} 15. Be5 {[%emt 0:07:32]} Bh6 {[%emt 0:02:55]} 16. Bf4 {[%emt 0:02:25]} (16. e3 $14) 16... Bxf4 {[%emt 0:02:10]} 17. gxf4 {[%emt 0:00:05]} Bg4 {[%emt 0:02:20]} 18. Ne5 {[%emt 0:04:30]} Qc8 {[%emt 0:08:15]} 19. Qd4 {[%emt 0:13:42]} Bh3 {[%emt 0:14:09]} 20. Na4 {[%emt 0:03:49]} Bxg2 {[%emt 0:02:10]} 21. Kxg2 {[%emt 0:01:09]} Nh5 {[%emt 0:01:10]} 22. f3 {[%emt 0:05:10]} f6 {[%emt 0:03:47]} 23. Ng4 {[%emt 0:01:02]} e5 {[%emt 0:01:28]} 24. fxe5 {[%emt 0:00:49]} fxe5 {[%emt 0:01:47]} 25. Nxe5 {[%emt 0:06:10]} Qf5 {[%emt 0:00:30]} 26. Ng4 {[%emt 0:04:04]} Rxe2+ {[%emt 0:00:34]} 27. Rf2 {[%emt 0:00:18]} Qf4 {[%emt 0:00:24]} 28. Qxf4 {[%emt 0:02:34]} (28. Rd1 $1 $15 Rbe7 29. Nc3) 28... Nxf4+ {[%emt 0:00:05]} 29. Kf1 {[%emt 0:01:02]} Rbe7 {[%emt 0:00:25]} 30. Nc3 {[%emt 0:00:36]} Rxf2+ {[%emt 0:00:23]} 31. Nxf2 {[%emt 0:00:04]} Re3 {[%emt 0:00:10]} 32. Ncd1 {[%emt 0:01:37]} Rxf3 {[%emt 0:00:11]} 33. Rc3 {[%emt 0:00:25]} Rxc3 {[%emt 0:00:13]} 34. Nxc3 {[%emt 0:00:03]} Kf7 {[%emt 0:00:32]} 35. b4 {[%emt 0:01:22]} (35. Ne2 $17 Ne6 36. Ng4) 35... Nc4 {[%emt 0:00:16]} 36. a4 {[%emt 0:01:19]} (36. Ke1 $142) 36... Ne3+ {[%emt 0:00:57]} 37. Kg1 {[%emt 0:00:29]} d4 {[%emt 0:01:30]} 38. Nce4 {[%emt 0:00:45]} Ne2+ {[%emt 0:00:20]} (38... Ke6 $142 39. Nd6 Ke5) 39. Kh1 {[%emt 0:00:02]} h6 {[%emt 0:02:47]} 40. b5 {[%emt 0:01:01]} cxb5 {[%emt 0:01:01]} 41. axb5 {[%emt 0:02:41]} axb5 {[%emt 0:00:05]} 42. Nd6+ {[%emt 0:06:27]} Ke6 {[%emt 0:01:18]} 43. Nxb5 {[%emt 0:00:55]} Kd5 {[%emt 0:02:30]} 44. Nd6 {[%emt 0:03:08]} Kxc5 {[%emt 0:01:09]} 45. Nf7 {[%emt 0:00:58]} h5 {[%emt 0:04:27]} 46. Nh3 {[%emt 0:06:01]} d3 {[%emt 0:05:40]} 47. Nf2 {[%emt 0:00:59]} Kd4 {[%emt 0:07:56]} 48. Nxd3 {[%emt 0:00:33]} Kxd3 {[%emt 0:00:05]} 49. Ne5+ {[%emt 0:00:03]} Ke4 {[%emt 0:00:08]} 50. Nxg6 {[%emt 0:00:02]} Nf4 {[%emt 0:02:57]} 51. Ne7 {[%emt 0:02:45]} Nh3 {[%emt 0:00:09]} 52. Ng8 {[%emt 0:01:21]} Kf3 {[%emt 0:00:07]} 53. Nf6 {[%emt 0:02:25]} Nd1 {[%emt 0:00:09]} 54. Nxh5 {[%emt 0:01:15]} Ndf2# 0-1

[Event "GER-chT Youth Countries 2018"]
[Site "Wurzburg"]
[Date "2018.10.07"]
[Round "7"]
[White "Neukirchner, Pascal"]
[Black "Faerber, David"]
[Result "1-0"]
[ECO "D30"]
[WhiteElo "2294"]
[BlackElo "2279"]
[Annotator "NA"]
[PlyCount "51"]
[EventDate "2018.10.03"]
[EventType "team-tourn"]
[EventCountry "GER"]
[SourceTitle "playchess.com"]
[Source "ChessBase"]
[SourceQuality "1"]
[TimeControl "40/5400+30:1800+30"]

{[%evp 9,48,29,25,15,36,20,49,19,38,39,32767,36,53,32,48,66,53,75,64,56,93,84,115,107,212,230,237,180,281,275,588,583,32767,32767,32767,32767,927,883,897,1011,29998]} 1. d4 {[%emt 0:00:00]} d5 {[%emt 0:00:00]} 2. c4 {[%emt 0:00:00]} e6 {[%emt 0:00:07]} 3. Nf3 {[%emt 0:00:00]} a6 {[%emt 0:00:11]} 4. cxd5 {[%emt 0:06:50]} exd5 {[%emt 0:00:09]} 5. Nc3 {[%emt 0:00:35]} c6 {[%emt 0:00:43] D31: Queen's Gambit Declined: Semi-Slav without ...Nf6 (+ Marshall Gambit and Noteboom) and Exchange Variation lines without ...Nf6} (5... Nf6 6. Qb3 Be7 7. Bf4 O-O 8. e3 Bd6 9. Bg5 c6 10. Bd3 Re8 11. O-O Be7 12. Rae1 Nbd7 13. e4 Nb6 14. Bxf6 Bxf6 15. exd5 Rxe1 16. Rxe1 Nxd5 {½-½ (30) Dubov,D (2691)-Fedoseev,V (2707) Abu Dhabi 2018}) 6. Bf4 {[%emt 0:02:21]} Bd6 {[%emt 0:00:46]} 7. Bxd6 {[%emt 0:04:56]} Qxd6 {[%emt 0:02:06]} 8. e4 {[%emt 0:00:05]} dxe4 {[%emt 0:10:30]} 9. Nxe4 {[%emt 0:00:21] LiveBook: 6 Games} Qe7 {[%emt 0:04:09]} 10. Qe2 {[%emt 0:03:04]} Be6 {[%emt 0:01:38]} 11. Nc5 {[%emt 0:02:35]} Nd7 $146 {[%emt 0:02:24]} ({Predecessor:} 11... Nf6 12. Nxe6 fxe6 13. O-O-O {0-1 (20) Saravanan,V (2379)-Luther,T (2526) Cappelle-la-Grande 2008}) 12. Nxe6 {[%emt 0:03:00]} fxe6 {[%emt 0:01:23]} 13. g3 {[%emt 0:01:48]} O-O-O {[%emt 0:16:06]} 14. Bh3 {[%emt 0:05:50]} Qb4+ {[%emt 0:03:29]} 15. Qd2 {[%emt 0:04:30]} Qb5 {[%emt 0:02:25]} 16. Ng5 {[%emt 0:10:55]} ({Resist} 16. Bxe6 $6 Ngf6 $11) 16... Nh6 {[%emt 0:07:09]} (16... Nc5 $16) 17. Nxe6 {[%emt 0:03:34]} ({Und nicht} 17. Bxe6 Rhe8 $11) 17... Rde8 {[%emt 0:08:17]} 18. O-O-O {[%emt 0:01:31]} Kb8 {[%emt 0:07:12]} (18... Qc4+ $16 {is a better defense.} 19. Qc2 Qxc2+ 20. Kxc2 g6) 19. Rhe1 {[%emt 0:02:31]} Qh5 $2 {[%emt 0:04:55]} (19... Rhg8 {is tougher.} 20. Kb1 Qd5) 20. Nxg7 {[%emt 0:00:27]} Qxh3 {[%emt 0:00:38]} 21. Rxe8+ {[%emt 0:00:18]} Rxe8 {[%emt 0:00:05]} 22. Nxe8 {[%emt 0:00:07]} Qxh2 {[%emt 0:00:16]} 23. Qf4+ {[%emt 0:00:39]} Ka7 $18 {[%emt 0:00:21]} 24. Qc7 {[%emt 0:00:10]} Nb6 {[%emt 0:00:35]} 25. Nd6 {[%emt 0:00:11]} Nd5 {[%emt 0:00:06]} 26. Qxb7# {[%emt 0:00:06]} 1-0